Workbook

Sheet TITLE(1)
R1: D09-RPM-FY2025
R5: PID No. | Y5: FEDERAL PROJECT No.
R6: 109873 | Y6: 100% STATE
R8: STATE JOB No. | Y8: CONSTRUCTION PROJECT No.
R9: 496042
S11: PROJECT DESCRIPTION REPLACEMENT OF RAISED PAVEMENT MARKER REFLECTORS IN ALL EIGHT COUNTIES AT VARIOUS LOCATIONS IN DISTRICT NINE.
S16: 2023 SPECIFICATIONS THE STANDARD SPECIFICATIONS OF THE STATE OF OHIO, DEPARTMENT OF TRANSPORTATION, INCLUDING CHANGES AND SUPPLMENTAL SPECIFICATIONS LISTED IN THE PROPOSAL SHALL GOVERN THIS IMPROVEMENT.
B20: LATITUDE: 39° 19'28"N | J20: LONGITUDE: 82°57'47"W
B22: EARTH DISTURBED AREA: | P22: N/A*
B23: PROJECT EARTH DISTURBED AREA: | P23: N/A*
B24: EST. CONTRACTOR EARTH DISTURBED AREA: | P24: N/A*
B25: NOTICE OF INTENT EARTH DISTURBED AREA: | P25: N/A*
B26: RAILROAD INVOLVEMENT: | P26: NONE | S26: I HEREBY APPROVE THESE PLANS AND DECLARE THAT THE MAKING OF THIS IMPROVEMENT WILL NOT REQUIRE THE CLOSING OF THE HIGHWAY TO TRAFFIC AND THAT PROVISIONS FOR THE MAINTENANCE AND SAFETY OF TRAFFIC WILL BE AS SET FORTH IN THESE PLANS AND ESTIMATES.
B27: *TYPE OF PROJECT: | L27: MAINTENANCE
B29: UNDERGROUND UTILITIES
E42: PLANS PREPARED BY:
B43: ODOT-D09 ENGINEERING
B44: ENGINEER'S SEAL | K44: STANDARD CONSTRUCTION DRAWINGS | AC44: SUPPLEMENTAL SPECIFICATIONS
K46: MT-95.30 | N46: 2019-07-19 | Q46: MT-97.10 | T46: 2019-04-19 | W46: TC-41.20 | Z46: 2013-10-18 | AC46: 800 | AF46: 2024-07-19
K47: MT-95.31 | N47: 2019-07-19 | Q47: MT-98.10 | T47: 2020-01-17 | W47: TC-42.20 | Z47: 2013-10-18 | AC47: 832 | AF47: 2024-07-19
K48: MT-95.32 | N48: 2019-04-19 | Q48: MT-98.11 | T48: 2020-01-17 | W48: TC-52.10 | Z48: 2013-10-18
K49: MT-95.60 | N49: 2019-04-19 | Q49: MT-98.22 | T49: 2020-01-17 | W49: TC-52.20 | Z49: 2021-01-15
K50: MT-95.61 | N50: 2019-04-19 | Q50: MT-98.28 | T50: 2020-01-17 | W50: TC-65.10 | Z50: 2014-01-17
Q51: MT-98.29 | T51: 2020-01-17 | W51: TC-65.11 | Z51: 2024-01-19 | AC51: SPECIAL PROVISIONS
Q52: MT-99.20 | T52: 2019-04-19
Q53: MT-105.10 | T53: 2020-01-17 | AC53: NONE

Sheet INDEX(2)
C2: INDEX OF SHEETS
B5: TITLE SHEET…………………………………………………………………………………………………………..1 | J5: ………..1
B7: INDEX OF SHEETS………………………………………………………………………………………………………2 | J7: ………..2
B9: GENERAL NOTES…………………………………………………………………………………………………3-4 | J9: ..………3
B11: GENERAL SUMMARY………………………………………………………………………………………………….5 | J11: ………..4
B13: ADAMS SUB-SUMMARY………………………………………………………………………………………………6 | J13: ………..5
B15: BROWN SUB-SUMMARY……………………………………………………………………………………………..7 | J15: .……….6
B17: HIGHLAND SUB-SUMMARY………………………………………………………………………………………….8 | J17: ………..7
B19: JACKSON SUB-SUMMARY…………………………………………………………………………………………..9 | J19: ………..8
B21: LAWRENCE SUB-SUMMARY………………………………………………………………………………………..10 | J21: ………..9
B23: PIKE SUB-SUMMARY…………………………………………………………………………………………………11 | J23: ……….10
B25: ROSS SUB-SUMMARY……………………………………………………………………………………………….12 | J25: ……….11
B27: SCIOTO SUB-SUMMARY………………………………………………………………………………………………13 | J27: ..……..12

Sheet NOTES(3)
A3: MAINTENANCE OF TRAFFIC | C3: MAINTENANCE OF TRAFFIC, CONT.
A4: A MINIMUM OF ONE LANE OF TRAFFIC IN EACH DIRECTION SHALL BE MAINTAINED AT ALL TIMES BY USE OF THE EXISTING PAVEMENT. LENGTH AND DURATION OF THE LANE CLOSURES AND RETSTRICTIONS SHALL BE AT THE APPROVAL OF THE ENGINEER. IT IS THE INTENT TO MINIMIZE THE IMPACT TO THE TRAVELING PUBLIC. LANE CLOSURES OR RESTRICTIONS OVER SEGMENTS OF THE PROJECT IN WHICH NO WORK IS ANTICIPATED WITHIN A REASONABLE TIME FRAME, AS DETERMINED BY THE ENGINEER, SHALL NOT BE PERMITTED. THE LEVEL OF UTILIZATION OF MAINTENANCE OF TRAFFIC DEVICES SHALL BE COMMENSURATE WITH THE WORK IN PROGRESS. | C4: SHOULD THE CONTRACTOR FAIL TO MEET ANY OF THESE REQURIEMENTS, THE CONTRACTOR SHALL BE ASSESSED A DISINCENTIVE AMOUNT OF $50.00 FOR EACH MINUTE THE ABOVE DESCRIBED LANE CLOSURE RESTRICTIONS ARE VIOLATED.
C9: THE CONTRACTOR WILL ADVISE THE DISTRICT PUBLIC INFORMATION OFFICER AT (740) 774-8834, OR EMAIL PIO@DOT.OHIO.GOV FOURTEEN (14) DAYS PRIOR TO THE START OF CONSTRUCTION ACTIVITIES. THE PROJECT ENGINEER WILL PROVIDE ASSISTANCE/CLARIFICATION FOR ANY QUESTIONS.
C16: ITEM 621, RPM
A17: ALL TRAFFIC CONTROL SIGNS, SIGNS, DEVICES, AND OPERATIONS USED FOR THE TEMPORARY MAINTENANCE AND CONTROL SHALL AT ALL TIME BE SUBJECT TO THE DIRECTION AND CONTROL OF THE ENGINEER IN RESPECT TO THEIR CONDITION, LOCATIONS, AND TIMES OF APPLICATION. VISIBLE SIGNS AND DEVICES SHALL CONSISTENTLY REFLECT THE CONDITIONS ACTUALLY EXISTING. INAPPROPRIATE SIGNS AND DEVICES SHALL BE REMOVED OR COVERED. | C17: THE FOLLOWING ESTIMATED QUANTITY HAS BEEN CARRIED TO
C18: THE GENERAL SUMMARY TO REPLACE MISSING RAISED PAVE-
C19: MENT MARKERS AS DIRECTED BY THE ENGINEER. HIGHWAY
C20: MANAGEMENT WILL PROVIDE COUNTY/ROUTE/SECTION AND
C21: LONGITUDE AND LATITUDE OF MISSING RPM'S DURING THE
C22: PRECONSTRUCTION MEETING.
C23: ITEM DESCRIPTION UNIT QUANTITY
C24: 621 RPM EACH 1,500
A27: THE CONTRACTOR SHALL BE RESPONSIBLE FOR FURNISHING, | C27: COMPLETION OF ORIGINAL WORK AND FINAL CONTRACT
A28: ERECTING OR REPLACING, MAINTAINING, AND REMOVING ALL | C28: COMPLETION
A29: TEMPORARY TRAFFIC CONTROL SIGNS AND DEVICES THAT MAY
A30: BE REQUIRED BY THE CMS AND/OR THE OHIO MANUAL FOR | C30: THE CONTRACTOR SHALL COMPLETE THE ORIGINAL WORK OF
A31: UNIFORM TRAFFIC CONTROL DEVICES FOR THE MAINTENANCE | C31: REPLACING THE EXISTING RAISED PAVEMENT MARKER REFLEC-
A32: OF THROUGH TRAFFIC. | C32: TORS AND RPMS IN ALL EIGHT COUNTIES AT VARIOUS LOCA-
C33: TIONS IN DISTRICT 9 BY JUNE 30TH, 2025. THE PROVISIONS
A34: MAINTAIN TRAFFIC AS FOLLOWS: | C34: OF 108.07 SHALL BE APPLICABLE TO THE DATE SET FOR COM-
A35: 1. ON TWO-LANE TWO-WAY ROADWAY MAINTAIN TRAFFIC IN | C35: PLETION OF ORIGINAL WORK.
A36: IN ACCORDANCE WITH STANDARD DRAWING MT-99.20,
A37: FLAGGERS IN ACCORDANCE WITH STANDARD DRAWING | C37: THE ENGINEER WILL DETERMINE IF ANY OF THE ORIGINAL WORK
A38: MT-97.10 MAY BE USED AS REQUIRED TO PROGRESS THE | C38: IS UNACCEPTABLE AFTER THE ORIGINAL WORK HAS GONE THRU
A39: THE WORK. | C39: THE WINTER SEASON BEFORE FINAL ACCEPTANCE. RAISED
A40: 2. ON-MUTI- LANE ROADWAYS MAINTAIN TRAFFIC IN ACCORD- | C40: PAVEMENT MARKERS WHICH ARE UNACCEPTABLE, OR BECOME
A41: ANCE WITH STANDARD DRAWING MT-99.20,(USING FLASHING | C41: UNACCEPTABLE PRIOR TO FINAL ACCEPTANCE, AS DETERMINED
A42: ARROW PANEL IN ACCORDANCE WITH STANDARD DRAWING | C42: BY THE ENGINEER, FOR CAUSES SUCH AS, BUT NOT LIMITED TO,
A43: MT-95.30) AND LANE CLOSURES IN ACCORDANCE WITH | C43: IMPROPER INSTALLATION, EPOXY NOT HARDENING OR LOSS OF
A44: STANDARD DRAWINGS MT-95.30, MT-95.31, MT-98.10, | C44: ADHESION TO THE PAVEMENT OR BETWEEN THE CASTING AND
A45: MT-98.11, MT-98.22, MT-98.28, OR MT-98.29 AS APPLICABLE | C45: THE PRISMATIC RETRO-REFLECTOR, LOSS OR IMPROPER RE-
A46: MAY BE USED AS REQUIRED TO PROGRESS WORK, | C46: FLECTING PRISMATIC RETRO-REFLECTOR SHALL BE REPLACED
C47: BY THE CONTRACTOR WITH RPM MATERIALS CONFORMING TO
A48: NO WORK SHALL BE PERFORMED AND ALL EXISTING LANES | C48: THE SPECIFICATIONS AND REQUIREMENTS AT HIS EXPENSE
A49: SHALL BE OPEN TO TRAFFIC DURING DESIGNATED HOLIDAYS OR | C49: WITHOUT DELAY. THE CONTRACTOR WILL RECEIVE NO PAYMENT
A50: EVENTS: | C50: FOR UNACCEPTABLE WORK THAT IS NON-PERFORMED.
A52: CHRISTMAS FOURTH OF JULY | C52: THE FINAL CONTRACT COMPLETION DATE IN THE PROPOSAL IS
A53: NEWY YEARS LABOR DAY | C53: THE DATE BY WHICH ANY RESULTING CORRECTIVE ACTION MUST
A54: MEMORIAL DAY THANKSGIVING | C54: BE COMPLETED.
A55: (OTHER HOLIDAY OR EVENT)
C56: CONTRACTOR IS NOT TO BEGIN CONSTRUCTION UNTIL
A57: THE PERIOD OF TIME THAT THE LANES ARE TO BE OPEN | C57: APRIL 1, 2025.
A58: DEPENDS ON THE DAY OF THE WEEK ON WHICH THE HOLIDAY
A59: OR EVENT FALLS. THE FOLLOWING SCHEDULE SHALL BE USED
A60: TO DETERMINE THIS PERIOD:
A62: DAY OF THE WEEK TIME ALL LANES MUST BE OPEN TO TRAFFIC
A64: SUNDAY 12:00N FRIDAY THRU 6:00 AM MONDAY
A65: MONDAY 12:00N FRIDAY THRU 6:00 AM TUESDAY
A66: TUESDAY 12:00N MONDAY THRU 6:00 AM WEDNESDAY
A67: WEDNESDAY 12:00N TUESDAY THRU 6:00 AM THURSDAY
A68: THURSDAY 12:00N WEDNESDAY THRU 6:00 AM FRIDAY
A69: THURSDAY (THANKSGIVING ONLY) 12:00N WEDNESDAY THRU 6:00 AM FRIDAY
A70: FRIDAY 12:00N THURSDAY THRU 6:00 AM MONDAY
A71: SATURDAY 12:00N FRIDAY TRHU 6:00 AM MONDAY

Sheet GEN SUM(4)
A1: TO USE MACRO FOR PLACING ITEMS - CLICK THE BUTTON. IN THE DIALOG BOX, CLICK FILE THEN NAVIGATE TO I:\ODOTstd\V8istd\vba\data AND SELECT THE APPROPRIATE FILE (E = ENGLISH UNITS). CLICK 'OPEN'. THEN FROM THE DROP DOWN YOU CAN BEGIN SELECTING YOUR ITEMS. WARNING: BE SURE TO SELECT A CELL IN THE "ITEM" COLUMN PRIOR TO PLACING ANY ITEM FROM THE MACRO WINDOW. | | \/ | B1: The shape object InnerSheetBorder represents the drawing area of an 8.5"x11" ODOT General Summary sheet
B3: SHEET NUMBER | K3: PLAN SPLIT | L3: ITEM | M3: ITEM | N3: GRAND | O3: UNIT | P3: DESCRIPTION | Q3: SEE SHEET NO.
B5: 3 | C5: 5 | D5: 6 | E5: 7 | F5: 8 | G5: 9 | H5: 10 | I5: 11 | J5: 12 | K5: 01/NFP/21 | M5: EXT. | N5: TOTAL
N7: =SUM(B7:K7) -> 0 | P7: TRAFFIC CONTROL
B9: 1500 | C9: =IF('ADA(5)'!G25=0,"",'ADA(5)'!G25) -> 16 | D9: =IF('BRO(6)'!G25=0,"",'BRO(6)'!G25) ->  | E9: =IF('HIG(7)'!G25=0,"",'HIG(7)'!G25) ->  | F9: =IF('JAC(8)'!G25=0,"",'JAC(8)'!G25) -> 16 | G9: =IF('LAW(9)'!G25=0,"",'LAW(9)'!G25) -> 16 | H9: =IF('PIK(10)'!G25=0,"",'PIK(10)'!G25) ->  | I9: =IF('ROS(11)'!G26=0,"",'ROS(11)'!G26) ->  | J9: =IF('SCI(12)'!G26=0,"",'SCI(12)'!G26) ->  | K9: =SUM(B9:J9) -> 1548 | L9: 621 | M9: 00100 | N9: 1500 | O9: EACH | P9: RPM
C10: ='ADA(5)'!H25 -> 7008 | D10: ='BRO(6)'!H25 -> 6657 | E10: ='HIG(7)'!H25 -> 5419 | F10: ='JAC(8)'!H25 -> 7054 | G10: ='LAW(9)'!H25 -> 3536 | H10: ='PIK(10)'!H25 -> 1437 | I10: ='ROS(11)'!H25 -> 5299 | J10: ='SCI(12)'!H25 -> 4200 | K10: =SUM(B10:J10) -> 40610 | L10: 621 | M10: 00300 | N10: =SUM(C10:J10) -> 40610 | O10: EACH | P10: RPM REFLECTOR
P12: INCIDENTALS
K14: 1 | L14: 614 | M14: 11000 | N14: LUMP | P14: MAINTAINING TRAFFIC
K15: 1 | L15: 624 | M15: 10000 | N15: LUMP | P15: MOBILIZATION
A26: SHEET 1
A33: CLICK HERE FOR THE ITEM MASTER VIA INTRANET

Sheet ADA(5)
A1: ADAMS COUNTY SUB-SUMMARY
A3: LOCATION NUMBER | B3: COUNTY | C3: ROUTE | D3: LOG POINT | F3: LOCATION DESCRIPTION | G3: 621 | I3: RPM REFLECTOR COLORS | N3: REMARKS
G5: RPM | H5: RPM REFLECTOR | I5: ONE-WAY WHITE | J5: ONE-WAY YELLOW | K5: TWO-WAY YELLOW/RED | L5: TWO-WAY YELLOW/YELLOW | M5: TWO-WAY WHITE/RED
D7: FROM | E7: TO
G8: EACH | H8: EACH | I8: EACH | J8: EACH | K8: EACH | L8: EACH | M8: EACH
A9: 1 | B9: ADA | C9: 52 | D9: 0 | E9: 6.57 | F9: BROWN COUNTY LINE TO MANCHESTER CORP. LIMIT | H9: 442 | L9: 442
A10: 2 | B10: ADA | C10: 32 | D10: 0 | E10: 6.73 | F10: BROWN CO. LINE TO PAVEMENT BREAK, 180' EAST OF CR 14 | H10: 905 | I10: 162 | M10: 743
A11: 3 | B11: ADA | C11: 41 | D11: 0 | E11: 7.46 | F11: BROWN COUNTY LINE TO SR 136 | H11: 585 | L11: 585
A12: 4 | B12: ADA | C12: 73 | D12: 10.43 | E12: 15.58 | F12: PAVEMENT BREAK, 320' EAST OF SR 32 TO SCIOTO CO. LINE | H12: 584 | L12: 584
A13: 5 | B13: ADA | C13: 125 | D13: 16.3 | E13: 26.07 | F13: PAVEMENT BREAK, 720' WEST OF CR 125 TO SCIOTO CO. LINE | H13: 1159 | L13: 1159
A14: 6 | B14: ADA | C14: 136 | D14: 0.56 | E14: 4.34 | F14: MANCHESTER CORP. LIMIT TO SR 41 | H14: 514 | I14: 16 | L14: 498
A15: 7 | B15: ADA | C15: 136 | D15: 5.87 | E15: 18.64 | F15: SR 41 TO WINCHESTER CORP. LIMIT | H15: 948 | I15: 48 | L15: 900
A16: 8 | B16: ADA | C16: 137 | D16: 0 | E16: 3.56 | F16: SR 136 TO SR 247 | G16: 16 | H16: 264 | I16: 32 | L16: 232 | N16: INSTALL NEW CASTINGS ALONG EDGE LINE WESTBOUND ON APPROACH TO SR 136.
A17: 9 | B17: ADA | C17: 247 | D17: 7.975 | E17: 16.881 | F17: WEST UNION CORP. LIMIT TO SEAMAN CORP. LIMIT | H17: 670 | I17: 16 | L17: 650 | M17: 4
A18: 10 | B18: ADA | C18: 781 | D18: 2.08 | E18: 10.987 | F18: PAVEMENT BREAK, 185' WEST OF CR 27 TO SR 348 | H18: 937 | I18: 16 | L18: 921
A24: SUB-TOTALS FOR THIS SHEET | G24: =SUM(G9:G23) -> 16 | H24: =SUM(H9:H23) -> 7008 | I24: =SUM(I9:I23) -> 290 | L24: =SUM(L9:L23) -> 5971 | M24: =SUM(M9:M23) -> 747
A25: TOTALS CARRIED TO THE GENERAL SUMMARY | G25: =G24 -> 16 | H25: =H24 -> 7008 | I25: =SUM(I24:M24) -> 7008

Sheet BRO(6)
A1: BROWN COUNTY SUB-SUMMARY
A3: LOCATION NUMBER | B3: COUNTY | C3: ROUTE | D3: LOG POINT | F3: LOCATION DESCRIPTION | G3: 621 | I3: RPM REFLECTOR COLORS | N3: REMARKS
G5: RPM | H5: RPM REFLECTOR | I5: ONE-WAY WHITE | J5: ONE-WAY YELLOW | K5: TWO-WAY YELLOW/RED | L5: TWO-WAY YELLOW/YELLOW | M5: TWO-WAY WHITE/RED
D7: FROM | E7: TO
G8: EACH | H8: EACH | I8: EACH | J8: EACH | K8: EACH | L8: EACH | M8: EACH
A9: 1 | B9: BRO | C9: 52 | D9: 21.322 | E9: 23.73 | F9: ABERDEEN CORP. LIMIT TO SCIOTO COUNTY LINE | H9: 161 | L9: 161
A10: 2 | B10: BRO | C10: 62 | D10: 13.84 | E10: 17.68 | F10: US 68 TO RUSSELLVILLE CORP. LIMIT | H10: 270 | I10: 16 | L10: 254
A11: 3 | B11: BRO | C11: 62 | D11: 18.98 | E11: 30.45 | F11: RUSSELLVILLE CORP. LIMIT TO HIGHLAND CO. LINE | H11: 955 | I11: 32 | L11: 915 | M11: 8
A12: 4 | B12: BRO | C12: 68 | D12: 11.673 | E12: 18.909 | F12: US 62 TO GEORGETOWN CORP. LIMIT | H12: 561 | L12: 521 | M12: 40
A13: 5 | B13: BRO | C13: 68 | D13: 22.38 | E13: 27.696 | F13: PVMT BREAK, 55' NORTH OF CR 21 TO MOUNT ORAB CORP. LIMIT | H13: 445 | L13: 445
A14: 6 | B14: BRO | C14: 131 | D14: 0 | E14: 3.89 | F14: CLERMONTY COUNTY LINE TO US 68 | H14: 354 | I14: 48 | L14: 306
A15: 7 | B15: BRO | C15: 134 | D15: 0.295 | E15: 0.34 | F15: SARDINIA CORP. LIMIT TO HIGHLAND COUNTY LINE | H15: 3 | L15: 3
A16: 8 | B16: BRO | C16: 221 | D16: 0.272 | E16: 7.549 | F16: HIGGINSPORT CORP. LIMIT TO GEORGETOWN CORP. LIMIT | H16: 722 | L16: 722
A17: 9 | B17: BRO | C17: 286 | D17: 0 | E17: 8.306 | F17: CLERMONT COUNTY LINE TO HIGHLAND COUNTY LINE | H17: 625 | I17: 32 | L17: 593
A18: 10 | B18: BRO | C18: 505 | D18: 0.236 | E18: 6.75 | F18: HIGGINSPORT CORP. LIMIT TO SR 756 | H18: 550 | L18: 550
A19: 11 | B19: BRO | C19: 763 | D19: 0 | E19: 12.7 | F19: SR 41 TO SR 125 | H19: 1177 | I19: 32 | L19: 1145
A20: 12 | B20: BRO | C20: 774 | D20: 0 | E20: 3.04 | F20: CLERMONT COUNTY LINE TO HAMERSVILLE CORP. LIMIT | H20: 252 | L20: 252
A21: 13 | B21: BRO | C21: 774 | D21: 3.38 | E21: 10.84 | F21: HAMERSVILLE CORP. LIMIT TO MOUNT ORAB CORP. LIMIT | H21: 582 | I21: 32 | L21: 550
A24: SUB-TOTALS FOR THIS SHEET | G24: =SUM(G9:G23) -> 0 | H24: =SUM(H9:H23) -> 6657 | I24: =SUM(I9:I23) -> 192 | L24: =SUM(L9:L23) -> 6417 | M24: =SUM(M9:M23) -> 48
A25: TOTALS CARRIED TO THE GENERAL SUMMARY | G25: =G24 -> 0 | H25: =H24 -> 6657 | I25: =SUM(I24:M24) -> 6657

Sheet HIG(7)
A1: HIGHLAND COUNTY SUB-SUMMARY
A3: LOCATION NUMBER | B3: COUNTY | C3: ROUTE | D3: LOG POINT | F3: LOCATION DESCRIPTION | G3: 621 | I3: RPM REFLECTOR COLORS | N3: REMARKS
G5: RPM | H5: RPM REFLECTOR | I5: ONE-WAY WHITE | J5: ONE-WAY YELLOW | K5: TWO-WAY YELLOW/RED | L5: TWO-WAY YELLOW/YELLOW | M5: TWO-WAY WHITE/RED
D7: FROM | E7: TO
G8: EACH | H8: EACH | I8: EACH | J8: EACH | K8: EACH | L8: EACH | M8: EACH
A9: 1 | B9: HIG | C9: 50 | D9: 14.98 | E9: 18.15 | F9: HILLSBORO CORP. LIMIT TO PVMT BREAK, 1700' WEST OF TR 383 | H9: 119 | L9: 119
A10: 2 | B10: HIG | C10: 73 | D10: 0 | E10: 7.41 | F10: CLINTON COUNTY LINE TO HILLSBORO CORP. LIMIT | H10: 470 | L10: 452 | M10: 18
A11: 3 | B11: HIG | C11: 124 | D11: 10.99 | E11: 25.85 | F11: HILLSBORO CORP. LIMIT TO SR 41 | H11: 1127 | I11: 32 | L11: 1095
A12: 4 | B12: HIG | C12: 131 | D12: 0 | E12: 7.08 | F12: BROWN COUNTY LINE TO SR 138 | H12: 563 | I12: 48 | L12: 515
A13: 5 | B13: HIG | C13: 134 | D13: 0 | E13: 5.18 | F13: BROWN COUNTY LINE TO PVMT BREAK, 2050' NORTH OF SR 138 | H13: 407 | I13: 32 | L13: 375
A14: 6 | B14: HIG | C14: 136 | D14: 0 | E14: 7.21 | F14: ADAMS COUNTY LINE TO US 62 | H14: 585 | I14: 16 | L14: 569
A15: 7 | B15: HIG | C15: 138 | D15: 16.91 | E15: 22.89 | F15: HILLSBORO CORP. LIMIT TO PVMT BREAK, 100' WEST OF CR 288 | H15: 482 | L15: 482
A16: 8 | B16: HIG | C16: 247 | D16: 0 | E16: 11.69 | F16: ADAMS COUNTY LINE TO HILLSBORO CORP. LIMIT | H16: 775 | L16: 775
A17: 9 | B17: HIG | C17: 753 | D17: 8.04 | E17: 18.17 | F17: US 50 TO SR 138 | H17: 891 | I17: 16 | L17: 875
A24: SUB-TOTALS FOR THIS SHEET | G24: =SUM(G9:G23) -> 0 | H24: 5419 | I24: 144 | J24: 0 | K24: 0 | L24: 5257 | M24: 18
A25: TOTALS CARRIED TO THE GENERAL SUMMARY | G25: =G24 -> 0 | H25: =H24 -> 5419 | I25: =SUM(I24:M24) -> 5419

Sheet JAC(8)
A1: JACKSON COUNTY SUB-SUMMARY
A3: LOCATION NUMBER | B3: COUNTY | C3: ROUTE | D3: LOG POINT | F3: LOCATION DESCRIPTION | G3: 621 | I3: RPM REFLECTOR COLORS | N3: REMARKS
G5: RPM | H5: RPM REFLECTOR | I5: ONE-WAY WHITE | J5: ONE-WAY YELLOW | K5: TWO-WAY YELLOW/RED | L5: TWO-WAY YELLOW/YELLOW | M5: TWO-WAY WHITE/RED
D7: FROM | E7: TO
G8: EACH | H8: EACH | I8: EACH | J8: EACH | K8: EACH | L8: EACH | M8: EACH
A9: 1 | B9: JAC | C9: 35 | D9: 11 | E9: 18.92 | F9: PVMT BRK, 2120' WEST OF SR 93 OVRPSS TO PVMT BRK, 730' WEST OF SR 327 | H9: 1355 | K9: 150 | M9: 1205 | N9: INLCUDES RAMPS AT SR 93 & CR 10
A10: 2 | B10: JAC | C10: 32 | D10: 0 | E10: 6.4 | F10: PIKE COUNTY LINE TO PVMT BREAK, 1160' EAST OF CR 20 | H10: 854 | M10: 854
A11: 3 | B11: JAC | C11: 32 | D11: 10.01 | E11: 12.48 | F11: PVMT BREAK, 375' WEST OF CR 261 TO PVMT BREAK, 310' EAST OF CR 259 | H11: 615 | K11: 178 | M11: 437 | N11: INLCLUDES RAMPS AT SR 93 & US 35
A12: 4 | B12: JAC | C12: 32 | D12: 17.54 | E12: 24.46 | F12: PVMT BRK, 2340' EAST OF SR 327 UNDRPSS TO VINTON CO. LINE | H12: 954 | M12: 954
A13: 5 | B13: JAC | C13: 93 | D13: 4.88 | E13: 14.34 | F13: OAK HILL CORP. LIMIT TO JACKSON CORP. LIMIT | H13: 707 | L13: 707
A14: 6 | B14: JAC | C14: 93 | D14: 15.4 | E14: 15.58 | F14: SR 32 OVERPASS TO JACKSON CORP. LIMIT | H14: 19 | L14: 15 | M14: 4
A15: 7 | B15: JAC | C15: 279 | D15: 0 | E15: 11.13 | F15: SR 139 TO OAK HILL CORP. LIMIT | H15: 1386 | I15: 16 | L15: 1370
A16: 8 | B16: JAC | C16: 327 | D16: 6.08 | E16: 6.76 | F16: PAVEMENT BREAK, 3840' SOUTH OF SR 124 TO SR 124 | G16: 16 | H16: 63 | I16: 16 | L16: 47 | N16: INSTALL NEW CASTINGS ALONG EDGE LINE NORTHBOUND ON APPROACH TO SR 124.
A17: 9 | B17: JAC | C17: 327 | D17: 7.22 | E17: 7.56 | F17: SR 124 TO WELLSTON CORP. LIMIT | H17: 38 | L17: 38
A18: 10 | B18: JAC | C18: 776 | D18: 2.87 | E18: 11.44 | F18: PAVEMENT BREAK, 165' EAST OF CR 24 | H18: 887 | I18: 32 | L18: 855
A19: 11 | B19: JAC | C19: 788 | D19: 0.49 | E19: 2.36 | F19: JACKSON CORP. LIMIT TO CR 78 | H19: 176 | L19: 176
A24: SUB-TOTALS FOR THIS SHEET | G24: =SUM(G9:G23) -> 16 | H24: 7054 | I24: 64 | J24: 0 | K24: 328 | L24: 3208 | M24: 3454
A25: TOTALS CARRIED TO THE GENERAL SUMMARY | G25: =G24 -> 16 | H25: =H24 -> 7054 | I25: =SUM(I24:M24) -> 7054

Sheet LAW(9)
A1: LAWRENCE COUNTY SUB-SUMMARY
A3: LOCATION NUMBER | B3: COUNTY | C3: ROUTE | D3: LOG POINT | F3: LOCATION DESCRIPTION | G3: 621 | I3: RPM REFLECTOR COLORS | N3: REMARKS
G5: RPM | H5: RPM REFLECTOR | I5: ONE-WAY WHITE | J5: ONE-WAY YELLOW | K5: TWO-WAY YELLOW/RED | L5: TWO-WAY YELLOW/YELLOW | M5: TWO-WAY WHITE/RED
D7: FROM | E7: TO
G8: EACH | H8: EACH | I8: EACH | J8: EACH | K8: EACH | L8: EACH | M8: EACH
A9: 1 | B9: LAW | C9: 52 | D9: 15 | E9: 22.53 | F9: CR 450 TO WEST VIRGINIA STATE LINE | H9: 1355 | K9: 155 | L9: 2 | M9: 1198 | N9: INCLUDES RAMPS AT SOLIDA RD & SR 7
A10: 2 | B10: LAW | C10: 7 | D10: 0 | E10: 2.44 | F10: US 52 TO SR 527 | H10: 421 | K10: 35 | M10: 386 | N10: INCLUDES RAMPS AT 2ND ST & SR 527
A11: 3 | B11: LAW | C11: 140 | D11: 0 | E11: 1.68 | F11: PIKE COUNTY LINE TO JACKSON COUNTY LINE | H11: 184 | L11: 184
A12: 4 | B12: LAW | C12: 217 | D12: 8.59 | E12: 13.56 | F12: PAVEMENT BREAK, 650' EAST OF CR 2 TO SR 218 | G12: 16 | H12: 766 | I12: 16 | L12: 750 | N12: INSTALL NEW CASTINGS ALONG EDGE LINE EASTBOUND ON APPROACH TO SR 775.
A13: 5 | B13: LAW | C13: 775 | D13: 9.53 | E13: 18.5 | F13: SR 217 TO PAVEMENT BREAK, 2300' NORTH OF TR 75W | H13: 810 | I13: 48 | L13: 762
A24: SUB-TOTALS FOR THIS SHEET | G24: =SUM(G9:G23) -> 16 | H24: 3536 | I24: 64 | J24: 0 | K24: 190 | L24: 1698 | M24: 1584
A25: TOTALS CARRIED TO THE GENERAL SUMMARY | G25: =G24 -> 16 | H25: =H24 -> 3536 | I25: =SUM(I24:M24) -> 3536

Sheet PIK(10)
A1: PIKE COUNTY SUB-SUMMARY
A3: LOCATION NUMBER | B3: COUNTY | C3: ROUTE | D3: LOG POINT | F3: LOCATION DESCRIPTION | G3: 621 | I3: RPM REFLECTOR COLORS | N3: REMARKS
G5: RPM | H5: RPM REFLECTOR | I5: ONE-WAY WHITE | J5: ONE-WAY YELLOW | K5: TWO-WAY YELLOW/RED | L5: TWO-WAY YELLOW/YELLOW | M5: TWO-WAY WHITE/RED
D7: FROM | E7: TO
G8: EACH | H8: EACH | I8: EACH | J8: EACH | K8: EACH | L8: EACH | M8: EACH
A9: 1 | B9: PIK | C9: 104 | D9: 0 | E9: 6.62 | F9: SCIOTO CO. LINE TO PVMT BREAK, 235' NORTH OF SR 32 | H9: 468 | L9: 460 | M9: 8
A10: 2 | B10: PIK | C10: 220 | D10: 13.42 | E10: 14 | F10: PAVEMENT BREAK, 320' WEST OF CR 78 TO SR 32 | H10: 56 | I10: 16 | L10: 40
A11: 3 | B11: PIK | C11: 335 | D11: 0 | E11: 6.9 | F11: SCIOTO COUNTY LINE TO BEAVER CORP. LIMIT | H11: 575 | I11: 32 | L11: 543
A12: 4 | B12: PIK | C12: 552 | D12: 0 | E12: 1.75 | F12: SR 220 TO SR 104 | H12: 239 | I12: 32 | L12: 207
A13: 5 | B13: PIK | C13: 776 | D13: 0 | E13: 0.99 | F13: SCIOTO COUNTY LINE TO JACKSON COUNTY LINE | H13: 99 | I13: 16 | L13: 83
A24: SUB-TOTALS FOR THIS SHEET | G24: =SUM(G9:G23) -> 0 | H24: 1437 | I24: 96 | J24: 0 | K24: 0 | L24: 1333 | M24: 8
A25: TOTALS CARRIED TO THE GENERAL SUMMARY | G25: =G24 -> 0 | H25: =H24 -> 1437 | I25: =SUM(I24:M24) -> 1437

Sheet ROS(11)
A1: ROSS COUNTY SUB-SUMMARY
A3: LOCATION NUMBER | B3: COUNTY | C3: ROUTE | D3: LOG POINT | F3: LOCATION DESCRIPTION | G3: 621 | I3: RPM REFLECTOR COLORS | N3: REMARKS
G5: RPM | H5: RPM REFLECTOR | I5: ONE-WAY WHITE | J5: ONE-WAY YELLOW | K5: TWO-WAY YELLOW/RED | L5: TWO-WAY YELLOW/YELLOW | M5: TWO-WAY WHITE/RED
D7: FROM | E7: TO
G8: EACH | H8: EACH | I8: EACH | J8: EACH | K8: EACH | L8: EACH | M8: EACH
A9: 1 | B9: ROS | C9: 23 | D9: 0 | E9: 8.23 | F9: PIKE CO. LINE TO PVMT BREAK, 2075' NORTH OF TR 1173 | H9: 1854 | L9: 697 | M9: 1157
A10: 2 | B10: ROS | C10: 35 | D10: 15.22 | E10: 20.56 | F10: PVMT BREAK, 2540' EAST OF CR 550 UNDERPASS TO US 23 | H10: 1023 | K10: 150 | L10: 12 | M10: 861 | N10: INCLUDES RAMPS AT PLEASANT VALLEY RD, SR 104, & SR 159
A11: 3 | B11: ROS | C11: 35 | D11: 22.65 | E11: 25.02 | F11: US 23 TO PVMT BREAK, 190' WEST OF US 50 (EAST) OVERPASS | H11: 400 | K11: 49 | M11: 351
A12: 4 | B12: ROS | C12: 50 | D12: 0 | E12: 4 | F12: HIGHLAND COUNTY LINE TO BAINBRIDGE CORP. LIMIT | H12: 270 | L12: 270
A13: 5 | B13: ROS | C13: 104 | D13: 8.64 | E13: 11.23 | F13: US 23 TO CHILLICOTHE CORP. LIMIT | H13: 416 | L13: 54 | M13: 362
A14: 6 | B14: ROS | C14: 104 | D14: 17.98 | E14: 18.68 | F14: PVMT BRK, 200' NORTH OF SR 207 (EAST) TO PVMT BRK, 70' NORTH OF CR 236 | H14: 118 | L14: 73 | M14: 45
A15: 7 | B15: ROS | C15: 159 | D15: 0.42 | E15: 1.14 | F15: CHILLICOTHE CORP. TO CHILLICOTHE CORP. | H15: 251 | I15: 16 | L15: 96 | M15: 139
A16: 8 | B16: ROS | C16: 159 | D16: 4.35 | E16: 10.21 | F16: PVMT BREAK, 800' SOUTH OF CR 553 TO KINGSTON CORP. LIMIT | H16: 564 | I16: 32 | L16: 452 | M16: 80
A17: 9 | B17: ROS | C17: 327 | D17: 2.08 | E17: 4.61 | F17: US 50 TO VINTON COUNTY LINE | H17: 190 | L17: 190
A18: 10 | B18: ROS | C18: 327 | D18: 4.61 | E18: 5.62 | F18: HOCKING COUNTY LINE TO HOCKING COUNTY LINE | H18: 73 | L18: 73
A19: 11 | B19: ROS | C19: 327 | D19: 5.62 | E19: 7.54 | F19: HOCKING COUNTY LINE TO ADELPHI CORP. LIMIT | H19: 140 | L19: 140
A24: SUB-TOTALS FOR THIS SHEET | G24: =SUM(G9:G23) -> 0 | H24: 5299 | I24: 48 | J24: 0 | K24: 199 | L24: 2057 | M24: 2995
A25: TOTALS CARRIED TO THE GENERAL SUMMARY | G25: =G24 -> 0 | H25: =H24 -> 5299 | I25: =SUM(I24:M24) -> 5299

Sheet SCI(12)
A1: SCIOTO COUNTY SUB-SUMMARY
A3: LOCATION NUMBER | B3: COUNTY | C3: ROUTE | D3: LOG POINT | F3: LOCATION DESCRIPTION | G3: 621 | I3: RPM REFLECTOR COLORS | N3: REMARKS
G5: RPM | H5: RPM REFLECTOR | I5: ONE-WAY WHITE | J5: ONE-WAY YELLOW | K5: TWO-WAY YELLOW/RED | L5: TWO-WAY YELLOW/YELLOW | M5: TWO-WAY WHITE/RED
D7: FROM | E7: TO
G8: EACH | H8: EACH | I8: EACH | J8: EACH | K8: EACH | L8: EACH | M8: EACH
A9: 1 | B9: SCI | C9: 23 | D9: 10.59 | E9: 11.48 | F9: RIDGE LN TO PVMT BREAK, 250' NORTH OF SR 348 | H9: 257 | I9: 48 | L9: 70 | M9: 139
A10: 2 | B10: SCI | C10: 52 | D10: 0 | E10: 8.66 | F10: ADAMS COUNTY LINE TO STRUCTURE SCI-52-0866 | H10: 566 | L10: 566
A11: 3 | B11: SCI | C11: 73 | D11: 10.07 | E11: 11.95 | F11: PVMT BRK, 1430' WEST OF CR 44 TO PVMT BRK, 875' EAST OF CR 41 | H11: 150 | L11: 150
A12: 4 | B12: SCI | C12: 73 | D12: 20.67 | E12: 21.74 | F12: PVMT BREAK, 2350' EAST OF SR 104 TO PVMT BREAK, 3150' WEST OF CR 57 | H12: 114 | L12: 114
A13: 5 | B13: SCI | C13: 104 | D13: 11.82 | E13: 17.7 | F13: PVMT BREAK, 1350' SOUTH OF SR 348 TO PIKE COUNTY LINE | H13: 421 | L13: 402 | M13: 19
A14: 6 | B14: SCI | C14: 140 | D14: 0.38 | E14: 10.42 | F14: PORTSMOUTH CORP. LIMIT TO SOUTH WEBSTER CORP. LIMIT | H14: 828 | L14: 809 | M14: 19
A15: 7 | B15: SCI | C15: 140 | D15: 11.76 | E15: 16.6 | F15: SOUTH WEBSTER CORP. LIMIT TO LAWRENCE CO. LINE | H15: 408 | L15: 408
A16: 8 | B16: SCI | C16: 335 | D16: 8.41 | E16: 16 | F16: MP 8.41 TO PIKE COUNTY LINE | H16: 765 | I16: 64 | L16: 701
A17: 9 | B17: SCI | C17: 348 | D17: 6.7 | E17: 12.8 | F17: OTWAY CORP. LIMIT TO PVMT BREAK, 800' WEST OF CR 524 | H17: 435 | L17: 435
A18: 10 | B18: SCI | C18: 776 | D18: 0 | E18: 2.69 | F18: SR 335 TO PIKE COUNTY LINE | H18: 256 | I18: 16 | L18: 240
A24: SUB-TOTALS FOR THIS SHEET | G24: =SUM(G9:G23) -> 0 | H24: 4200 | I24: 128 | J24: 0 | K24: 0 | L24: 3895 | M24: 177
A25: TOTALS CARRIED TO THE GENERAL SUMMARY | G25: =G24 -> 0 | H25: =H24 -> 4200 | I25: =SUM(I24:M24) -> 4200
